[Event "Titled Tuesday Blitz October 04 Early 2022"]
[White "Sarana, Alexey"]
[Black "Makarian, Rudik"]
[WhiteFideId "24133795"]
[BlackFideId "44105681"]
[WhiteElo "2689"]
[BlackElo "2405"]
[Result "0-1"]
[Round "08"]
[TimeControl "180+1"]
[Date "2022.10.04"]
[WhiteClock "0:00:01"]
[BlackClock "0:00:09"]

1. c4 {[%clk 0:03:00]}  g6 {[%clk 0:02:59]} 2. d4 {[%clk 0:03:00]}  Bg7 {[%clk 0:03:00]} 3. e4 {[%clk 0:03:00]}  d6 {[%clk 0:02:59]} 4. Nc3 {[%clk 0:03:00]}  e5 {[%clk 0:02:51]} 5. d5 {[%clk 0:02:56]}  Ne7 {[%clk 0:02:50]} 6. Bd3 {[%clk 0:02:50]}  a5 {[%clk 0:02:47]} 7. h4 {[%clk 0:02:43]}  h5 {[%clk 0:02:47]} 8. Nh3 {[%clk 0:02:44]}  Bxh3 {[%clk 0:02:47]} 9. Rxh3 {[%clk 0:02:43]}  Nd7 {[%clk 0:02:45]} 10. Be3 {[%clk 0:02:43]}  Bh6 {[%clk 0:02:44]} 11. Bxh6 {[%clk 0:02:39]}  Rxh6 {[%clk 0:02:44]} 12. Qd2 {[%clk 0:02:39]}  Rh8 {[%clk 0:02:45]} 13. O-O-O {[%clk 0:02:39]}  Nc5 {[%clk 0:02:42]} 14. Bc2 {[%clk 0:02:39]}  Ng8 {[%clk 0:02:28]} 15. Kb1 {[%clk 0:02:37]}  Nf6 {[%clk 0:02:25]} 16. a3 {[%clk 0:02:36]}  a4 {[%clk 0:02:23]} 17. Rf1 {[%clk 0:02:28]}  Qe7 {[%clk 0:02:19]} 18. Qd1 {[%clk 0:02:22]}  Kf8 {[%clk 0:02:13]} 19. f3 {[%clk 0:02:02]}  Kg7 {[%clk 0:02:12]} 20. Bxa4 {[%clk 0:01:56]}  Ra6 {[%clk 0:01:58]} 21. Bc2 {[%clk 0:01:56]}  Rha8 {[%clk 0:01:58]} 22. g4 {[%clk 0:01:54]}  c6 {[%clk 0:01:55]} 23. Rg1 {[%clk 0:01:46]}  Qc7 {[%clk 0:01:44]} 24. Rhg3 {[%clk 0:01:26]}  Qb6 {[%clk 0:01:41]} 25. Kc1 {[%clk 0:01:26]}  Rxa3 {[%clk 0:01:10]} 26. bxa3 {[%clk 0:01:23]}  Rxa3 {[%clk 0:01:10]} 27. Nb1 {[%clk 0:00:36]}  Ra2 {[%clk 0:01:09]} 28. R1g2 {[%clk 0:00:26]}  hxg4 {[%clk 0:00:50]} 29. Qf1 {[%clk 0:00:18]}  Qb2+ {[%clk 0:00:33]} 30. Kd1 {[%clk 0:00:18]}  Ra1 {[%clk 0:00:33]} 31. Qe2 {[%clk 0:00:12]}  Rxb1+ {[%clk 0:00:21]} 32. Bxb1 {[%clk 0:00:13]}  Qxb1+ {[%clk 0:00:22]} 33. Kd2 {[%clk 0:00:13]}  gxf3 {[%clk 0:00:22]} 34. Qxf3 {[%clk 0:00:04]}  Nfxe4+ {[%clk 0:00:22]} 35. Ke2 {[%clk 0:00:04]}  Qc2+ {[%clk 0:00:20]} 36. Ke1 {[%clk 0:00:04]}  Qc1+ {[%clk 0:00:19]} 37. Ke2 {[%clk 0:00:05]}  Qxc4+ {[%clk 0:00:19]} 38. Kd1 {[%clk 0:00:05]}  Qxd5+ {[%clk 0:00:18]} 39. Ke1 {[%clk 0:00:04]}  Nxg3 {[%clk 0:00:12]} 40. Qxg3 {[%clk 0:00:03]}  Qe4+ {[%clk 0:00:10]} 41. Re2 {[%clk 0:00:03]}  Qb1+ {[%clk 0:00:10]} 42. Kf2 {[%clk 0:00:02]}  b5 {[%clk 0:00:11]} 43. Qg4 {[%clk 0:00:02]}  b4 {[%clk 0:00:10]} 44. Kg2 {[%clk 0:00:01]}  Qd3 {[%clk 0:00:10]} 45. Rf2 {[%clk 0:00:01]}  Qe4+ {[%clk 0:00:09]} 0-1


[Site "https://www.chess.com"]

[Event "Titled Tuesday Blitz October 04 Early 2022"]
[White "Tin, Jingyao"]
[Black "Hakobyan, Aram"]
[WhiteFideId "5804418"]
[BlackFideId "13306677"]
[WhiteElo "2462"]
[BlackElo "2563"]
[Result "0-1"]
[Round "08"]
[TimeControl "180+1"]
[Date "2022.10.04"]
[WhiteClock "0:00:01"]
[BlackClock "0:00:52"]

1. d4 {[%clk 0:02:59]}  Nf6 {[%clk 0:02:59]} 2. c4 {[%clk 0:03:00]}  e6 {[%clk 0:02:59]} 3. Nf3 {[%clk 0:02:59]}  b6 {[%clk 0:02:58]} 4. g3 {[%clk 0:02:59]}  Bb7 {[%clk 0:02:59]} 5. Bg2 {[%clk 0:03:00]}  Bb4+ {[%clk 0:02:58]} 6. Bd2 {[%clk 0:02:58]}  Be7 {[%clk 0:02:58]} 7. O-O {[%clk 0:02:58]}  O-O {[%clk 0:02:59]} 8. Nc3 {[%clk 0:02:58]}  c6 {[%clk 0:02:59]} 9. e4 {[%clk 0:02:34]}  d5 {[%clk 0:03:00]} 10. e5 {[%clk 0:02:34]}  Ne4 {[%clk 0:03:00]} 11. Re1 {[%clk 0:02:21]}  Nxd2 {[%clk 0:02:50]} 12. Nxd2 {[%clk 0:02:21]}  Nd7 {[%clk 0:02:49]} 13. Rc1 {[%clk 0:02:09]}  Rc8 {[%clk 0:02:46]} 14. h4 {[%clk 0:01:52]}  a6 {[%clk 0:02:44]} 15. a3 {[%clk 0:01:46]}  dxc4 {[%clk 0:02:35]} 16. Nxc4 {[%clk 0:01:45]}  b5 {[%clk 0:02:36]} 17. Nd2 {[%clk 0:01:38]}  Qb6 {[%clk 0:02:36]} 18. Nb3 {[%clk 0:01:29]}  Rfd8 {[%clk 0:02:31]} 19. Qg4 {[%clk 0:01:11]}  b4 {[%clk 0:02:05]} 20. Na4 {[%clk 0:01:05]}  Qb5 {[%clk 0:02:04]} 21. Nac5 {[%clk 0:01:04]}  Nxc5 {[%clk 0:02:03]} 22. Nxc5 {[%clk 0:01:03]}  Bxc5 {[%clk 0:01:49]} 23. Rxc5 {[%clk 0:01:04]}  Qa4 {[%clk 0:01:46]} 24. Rc4 {[%clk 0:00:58]}  a5 {[%clk 0:01:46]} 25. axb4 {[%clk 0:00:58]}  Ba6 {[%clk 0:01:46]} 26. Rc5 {[%clk 0:00:27]}  Qxb4 {[%clk 0:01:45]} 27. Rd1 {[%clk 0:00:26]}  Qxb2 {[%clk 0:01:42]} 28. Qe4 {[%clk 0:00:16]}  a4 {[%clk 0:01:38]} 29. Rxc6 {[%clk 0:00:12]}  Rxc6 {[%clk 0:01:13]} 30. Qxc6 {[%clk 0:00:13]}  Be2 {[%clk 0:01:13]} 31. Qc7 {[%clk 0:00:05]}  Rf8 {[%clk 0:01:12]} 32. Re1 {[%clk 0:00:05]}  a3 {[%clk 0:01:12]} 33. d5 {[%clk 0:00:05]}  a2 {[%clk 0:01:11]} 34. Qa5 {[%clk 0:00:05]}  Bd3 {[%clk 0:00:57]} 35. d6 {[%clk 0:00:03]}  Bb1 {[%clk 0:00:50]} 36. d7 {[%clk 0:00:03]}  Qd4 {[%clk 0:00:51]} 37. Bc6 {[%clk 0:00:01]}  a1=Q {[%clk 0:00:52]} 0-1


[Site "https://www.chess.com"]

[Event "Titled Tuesday Blitz October 04 Early 2022"]
[White "Vignesh, N R"]
[Black "Gunina, Valentina"]
[WhiteFideId "25012215"]
[BlackFideId "4167570"]
[WhiteElo "2386"]
[BlackElo "2376"]
[Result "0-1"]
[Round "08"]
[TimeControl "180+1"]
[Date "2022.10.04"]
[WhiteClock "0:00:31"]
[BlackClock "0:01:08"]

1. d4 {[%clk 0:02:21]}  d5 {[%clk 0:02:59]} 2. c4 {[%clk 0:02:21]}  c6 {[%clk 0:03:00]} 3. Nf3 {[%clk 0:02:21]}  Nf6 {[%clk 0:03:00]} 4. e3 {[%clk 0:02:21]}  Bg4 {[%clk 0:02:59]} 5. Nc3 {[%clk 0:02:19]}  Bxf3 {[%clk 0:02:58]} 6. Qxf3 {[%clk 0:02:19]}  e6 {[%clk 0:02:59]} 7. Bd3 {[%clk 0:02:18]}  Nbd7 {[%clk 0:02:58]} 8. Qd1 {[%clk 0:02:17]}  Bd6 {[%clk 0:02:56]} 9. O-O {[%clk 0:02:17]}  dxc4 {[%clk 0:02:53]} 10. Bxc4 {[%clk 0:02:16]}  Qe7 {[%clk 0:02:54]} 11. e4 {[%clk 0:02:06]}  e5 {[%clk 0:02:54]} 12. d5 {[%clk 0:02:07]}  Nb6 {[%clk 0:02:54]} 13. Bb3 {[%clk 0:02:07]}  cxd5 {[%clk 0:02:53]} 14. Bxd5 {[%clk 0:02:07]}  Nfxd5 {[%clk 0:02:51]} 15. Nxd5 {[%clk 0:02:06]}  Nxd5 {[%clk 0:02:51]} 16. Qxd5 {[%clk 0:02:06]}  Rd8 {[%clk 0:02:50]} 17. Be3 {[%clk 0:02:03]}  O-O {[%clk 0:02:50]} 18. Bxa7 {[%clk 0:01:58]}  Ra8 {[%clk 0:02:28]} 19. Rfd1 {[%clk 0:01:50]}  Ba3 {[%clk 0:02:25]} 20. Be3 {[%clk 0:01:43]}  Bxb2 {[%clk 0:01:50]} 21. Bc5 {[%clk 0:01:41]}  Qe6 {[%clk 0:01:51]} 22. Rab1 {[%clk 0:01:26]}  Qxd5 {[%clk 0:01:24]} 23. Rxd5 {[%clk 0:01:25]}  Bd4 {[%clk 0:01:15]} 24. Bxf8 {[%clk 0:01:23]}  Kxf8 {[%clk 0:01:16]} 25. Rxb7 {[%clk 0:01:22]}  Ke8 {[%clk 0:01:11]} 26. Kf1 {[%clk 0:00:31]}  Rxa2 {[%clk 0:01:10]} 27. f4 {[%clk 0:00:31]}  Rf2+ {[%clk 0:01:09]} 28. Ke1 {[%clk 0:00:31]}  Rxf4 {[%clk 0:01:09]} 29. Ra5 {[%clk 0:00:31]}  Bc3+ {[%clk 0:01:08]} 0-1


[Site "https://www.chess.com"]

[Event "Titled Tuesday Blitz October 04 Early 2022"]
[White "Yaran, Siar"]
[Black "Nigmatov, Ortik"]
[WhiteFideId "6323006"]
[BlackFideId "14202131"]
[WhiteElo "2191"]
[BlackElo "2378"]
[Result "0-1"]
[Round "08"]
[TimeControl "180+1"]
[Date "2022.10.04"]
[WhiteClock "0:00:19"]
[BlackClock "0:02:26"]

1. e4 {[%clk 0:03:00]}  c5 {[%clk 0:02:50]} 2. Nf3 {[%clk 0:02:59]}  e6 {[%clk 0:02:50]} 3. d4 {[%clk 0:02:59]}  cxd4 {[%clk 0:02:51]} 4. Nxd4 {[%clk 0:03:00]}  Nf6 {[%clk 0:02:51]} 5. Nc3 {[%clk 0:02:59]}  d6 {[%clk 0:02:52]} 6. g4 {[%clk 0:02:57]}  e5 {[%clk 0:02:52]} 7. Nf5 {[%clk 0:02:56]}  h5 {[%clk 0:02:52]} 8. g5 {[%clk 0:02:54]}  Nxe4 {[%clk 0:02:52]} 9. Nxg7+ {[%clk 0:02:47]}  Bxg7 {[%clk 0:02:53]} 10. Nxe4 {[%clk 0:02:47]}  d5 {[%clk 0:02:54]} 11. Ng3 {[%clk 0:02:30]}  Bg4 {[%clk 0:02:50]} 12. Be2 {[%clk 0:02:25]}  Nc6 {[%clk 0:02:49]} 13. Bxg4 {[%clk 0:02:06]}  hxg4 {[%clk 0:02:48]} 14. Nf5 {[%clk 0:02:02]}  Nd4 {[%clk 0:02:48]} 15. Nxd4 {[%clk 0:01:57]}  exd4 {[%clk 0:02:49]} 16. Qxg4 {[%clk 0:01:55]}  O-O {[%clk 0:02:49]} 17. O-O {[%clk 0:01:38]}  Qc8 {[%clk 0:02:49]} 18. Qf3 {[%clk 0:00:47]}  Qxc2 {[%clk 0:02:47]} 19. Bf4 {[%clk 0:00:47]}  Qe4 {[%clk 0:02:46]} 20. Qg3 {[%clk 0:00:47]}  Rfe8 {[%clk 0:02:45]} 21. Rad1 {[%clk 0:00:45]}  Rac8 {[%clk 0:02:43]} 22. Rd2 {[%clk 0:00:45]}  Rc2 {[%clk 0:02:40]} 23. Rfd1 {[%clk 0:00:23]}  Rxd2 {[%clk 0:02:39]} 24. Bxd2 {[%clk 0:00:20]}  Qe2 {[%clk 0:02:38]} 25. Qb3 {[%clk 0:00:20]}  d3 {[%clk 0:02:31]} 26. Bf4 {[%clk 0:00:19]}  Bd4 {[%clk 0:02:27]} 27. Bg3 {[%clk 0:00:19]}  d2 {[%clk 0:02:26]} 28. Qc2 {[%clk 0:00:19]}  Qxd1+ {[%clk 0:02:26]} 0-1


[Site "https://www.chess.com"]

[Event "Titled Tuesday Blitz October 04 Early 2022"]
[White "Zelbel, Patrick"]
[Black "Guzman, Christopher"]
[WhiteFideId "24624322"]
[BlackFideId "6405096"]
[WhiteElo "2474"]
[BlackElo "2272"]
[Result "1-0"]
[Round "08"]
[TimeControl "180+1"]
[Date "2022.10.04"]
[WhiteClock "0:00:20"]
[BlackClock "0:01:04"]

1. e4 {[%clk 0:03:00]}  c6 {[%clk 0:02:58]} 2. c4 {[%clk 0:03:00]}  d5 {[%clk 0:02:59]} 3. exd5 {[%clk 0:03:00]}  cxd5 {[%clk 0:03:00]} 4. cxd5 {[%clk 0:03:01]}  Qxd5 {[%clk 0:02:59]} 5. Nc3 {[%clk 0:03:01]}  Qd8 {[%clk 0:03:00]} 6. Nf3 {[%clk 0:03:02]}  Nf6 {[%clk 0:03:01]} 7. d4 {[%clk 0:03:01]}  e6 {[%clk 0:03:01]} 8. Bc4 {[%clk 0:03:00]}  Be7 {[%clk 0:03:01]} 9. O-O {[%clk 0:03:01]}  O-O {[%clk 0:03:01]} 10. Qe2 {[%clk 0:03:00]}  a6 {[%clk 0:03:01]} 11. a3 {[%clk 0:03:00]}  b5 {[%clk 0:02:58]} 12. Ba2 {[%clk 0:02:59]}  Bb7 {[%clk 0:02:58]} 13. Bg5 {[%clk 0:02:55]}  Nbd7 {[%clk 0:02:57]} 14. Rad1 {[%clk 0:02:54]}  Nd5 {[%clk 0:02:43]} 15. Bxd5 {[%clk 0:02:44]}  Bxd5 {[%clk 0:02:38]} 16. Bxe7 {[%clk 0:01:43]}  Bxf3 {[%clk 0:02:37]} 17. Qxf3 {[%clk 0:01:34]}  Qxe7 {[%clk 0:02:37]} 18. d5 {[%clk 0:01:32]}  exd5 {[%clk 0:02:22]} 19. Nxd5 {[%clk 0:01:31]}  Qd6 {[%clk 0:02:09]} 20. Rfe1 {[%clk 0:01:23]}  Ne5 {[%clk 0:02:05]} 21. Qe4 {[%clk 0:00:49]}  Ng6 {[%clk 0:02:00]} 22. h4 {[%clk 0:00:39]}  f5 {[%clk 0:01:45]} 23. Qd4 {[%clk 0:00:25]}  Qd8 {[%clk 0:01:07]} 24. h5 {[%clk 0:00:24]}  Nh4 {[%clk 0:01:05]} 25. Ne7+ {[%clk 0:00:22]}  Kh8 {[%clk 0:01:03]} 26. Qxh4 {[%clk 0:00:21]}  Qc7 {[%clk 0:01:04]} 27. Ng6+ {[%clk 0:00:20]} 1-0


[Site "https://www.chess.com"]

[Event "Titled Tuesday Blitz October 04 Early 2022"]
[White "Domingo Nunez, Ruben"]
[Black "Sarana, Alexey"]
[WhiteFideId "22245570"]
[BlackFideId "24133795"]
[WhiteElo "2406"]
[BlackElo "2689"]
[Result "0-1"]
[Round "09"]
[TimeControl "180+1"]
[Date "2022.10.04"]
[WhiteClock "0:00:02"]
[BlackClock "0:01:40"]

1. c4 {[%clk 0:02:53]}  e6 {[%clk 0:02:59]} 2. Nf3 {[%clk 0:02:52]}  d5 {[%clk 0:02:57]} 3. e3 {[%clk 0:02:52]}  Nf6 {[%clk 0:02:57]} 4. b3 {[%clk 0:02:52]}  Bd6 {[%clk 0:02:57]} 5. Bb2 {[%clk 0:02:53]}  O-O {[%clk 0:02:58]} 6. Be2 {[%clk 0:02:53]}  Re8 {[%clk 0:02:58]} 7. O-O {[%clk 0:02:53]}  Nbd7 {[%clk 0:02:55]} 8. d4 {[%clk 0:02:51]}  b6 {[%clk 0:02:51]} 9. a4 {[%clk 0:02:49]}  a5 {[%clk 0:02:46]} 10. Ne5 {[%clk 0:02:22]}  Bb7 {[%clk 0:02:46]} 11. Nd2 {[%clk 0:02:15]}  c5 {[%clk 0:02:45]} 12. Ndf3 {[%clk 0:02:14]}  Ne4 {[%clk 0:02:42]} 13. Nxd7 {[%clk 0:02:06]}  Qxd7 {[%clk 0:02:43]} 14. Ne5 {[%clk 0:02:07]}  Qc7 {[%clk 0:02:41]} 15. f3 {[%clk 0:01:52]}  Nf6 {[%clk 0:02:39]} 16. Rc1 {[%clk 0:01:48]}  Rad8 {[%clk 0:02:38]} 17. Qe1 {[%clk 0:01:46]}  cxd4 {[%clk 0:02:26]} 18. cxd5 {[%clk 0:01:31]}  Qe7 {[%clk 0:02:22]} 19. Bxd4 {[%clk 0:01:06]}  Nxd5 {[%clk 0:02:22]} 20. Bb5 {[%clk 0:01:02]}  Rf8 {[%clk 0:02:17]} 21. Nc4 {[%clk 0:00:54]}  Bc7 {[%clk 0:02:08]} 22. Qf2 {[%clk 0:00:47]}  e5 {[%clk 0:02:00]} 23. Bb2 {[%clk 0:00:43]}  Nb4 {[%clk 0:02:01]} 24. Ba3 {[%clk 0:00:43]}  e4 {[%clk 0:02:01]} 25. f4 {[%clk 0:00:42]}  Rd3 {[%clk 0:02:00]} 26. Ne5 {[%clk 0:00:35]}  Rxb3 {[%clk 0:01:55]} 27. Bxb4 {[%clk 0:00:09]}  axb4 {[%clk 0:01:55]} 28. Rfd1 {[%clk 0:00:10]}  Bxe5 {[%clk 0:01:53]} 29. Rd7 {[%clk 0:00:10]}  Qxd7 {[%clk 0:01:42]} 30. Bxd7 {[%clk 0:00:10]}  Bc3 {[%clk 0:01:43]} 31. Bb5 {[%clk 0:00:03]}  Rb2 {[%clk 0:01:43]} 32. Qf1 {[%clk 0:00:01]}  Bd2 {[%clk 0:01:42]} 33. Rb1 {[%clk 0:00:01]}  Bxe3+ {[%clk 0:01:41]} 34. Kh1 {[%clk 0:00:02]}  Rf2 {[%clk 0:01:40]} 35. Qe1 {[%clk 0:00:02]}  Bc5 {[%clk 0:01:40]} 0-1


[Site "https://www.chess.com"]

[Event "Titled Tuesday Blitz October 04 Early 2022"]
[White "Gabrielian, Artur"]
[Black "Piesik, Piotr"]
[WhiteFideId "4131002"]
[BlackFideId "1136194"]
[WhiteElo "2432"]
[BlackElo "2323"]
[Result "1-0"]
[Round "09"]
[TimeControl "180+1"]
[Date "2022.10.04"]
[WhiteClock "0:01:16"]
[BlackClock "0:00:36"]

1. e4 {[%clk 0:03:00]}  g6 {[%clk 0:02:06]} 2. d4 {[%clk 0:03:00]}  Bg7 {[%clk 0:02:07]} 3. Nc3 {[%clk 0:02:59]}  c6 {[%clk 0:02:07]} 4. h3 {[%clk 0:02:59]}  d6 {[%clk 0:02:07]} 5. f4 {[%clk 0:02:56]}  Nf6 {[%clk 0:02:07]} 6. Nf3 {[%clk 0:02:55]}  b5 {[%clk 0:02:06]} 7. Bd3 {[%clk 0:02:54]}  b4 {[%clk 0:02:02]} 8. Ne2 {[%clk 0:02:54]}  a5 {[%clk 0:01:59]} 9. O-O {[%clk 0:02:53]}  Ba6 {[%clk 0:01:58]} 10. e5 {[%clk 0:02:52]}  Nd5 {[%clk 0:01:57]} 11. f5 {[%clk 0:02:51]}  Bxd3 {[%clk 0:01:54]} 12. Qxd3 {[%clk 0:02:50]}  Qb6 {[%clk 0:01:48]} 13. exd6 {[%clk 0:02:31]}  exd6 {[%clk 0:01:47]} 14. Nf4 {[%clk 0:02:31]}  O-O {[%clk 0:01:39]} 15. Nxd5 {[%clk 0:02:30]}  cxd5 {[%clk 0:01:40]} 16. Bg5 {[%clk 0:02:19]}  Re8 {[%clk 0:01:37]} 17. Rf2 {[%clk 0:02:12]}  Nc6 {[%clk 0:01:33]} 18. f6 {[%clk 0:02:11]}  Bf8 {[%clk 0:01:31]} 19. Qd2 {[%clk 0:02:07]}  Re4 {[%clk 0:01:27]} 20. c3 {[%clk 0:02:06]}  Rae8 {[%clk 0:01:18]} 21. Bh6 {[%clk 0:02:01]}  Qd8 {[%clk 0:01:18]} 22. Bxf8 {[%clk 0:01:55]}  Rxf8 {[%clk 0:01:19]} 23. Ng5 {[%clk 0:01:27]}  Ree8 {[%clk 0:01:07]} 24. Qf4 {[%clk 0:01:27]}  h6 {[%clk 0:01:01]} 25. Qh4 {[%clk 0:01:17]}  h5 {[%clk 0:00:57]} 26. g4 {[%clk 0:01:17]}  bxc3 {[%clk 0:00:36]} 27. bxc3 {[%clk 0:01:16]} 1-0


[Site "https://www.chess.com"]

[Event "Titled Tuesday Blitz October 04 Early 2022"]
[White "Hambleton, Aman"]
[Black "Omelja, Artem"]
[WhiteFideId "2606577"]
[BlackFideId "14119846"]
[WhiteElo "2538"]
[BlackElo "2403"]
[Result "0-1"]
[Round "09"]
[TimeControl "180+1"]
[Date "2022.10.04"]
[WhiteClock "0:00:03"]
[BlackClock "0:00:06"]

1. d4 {[%clk 0:02:40]}  d5 {[%clk 0:02:58]} 2. Bf4 {[%clk 0:02:40]}  Nf6 {[%clk 0:02:58]} 3. e3 {[%clk 0:02:41]}  c5 {[%clk 0:02:58]} 4. c3 {[%clk 0:02:41]}  Nc6 {[%clk 0:02:58]} 5. Nd2 {[%clk 0:02:42]}  Bf5 {[%clk 0:02:57]} 6. Qb3 {[%clk 0:02:42]}  Qc8 {[%clk 0:02:58]} 7. Ngf3 {[%clk 0:02:14]}  e6 {[%clk 0:02:57]} 8. Nh4 {[%clk 0:01:53]}  Bg4 {[%clk 0:02:53]} 9. h3 {[%clk 0:01:49]}  Bh5 {[%clk 0:02:53]} 10. g4 {[%clk 0:01:49]}  Bg6 {[%clk 0:02:54]} 11. Nxg6 {[%clk 0:01:37]}  hxg6 {[%clk 0:02:55]} 12. Bg2 {[%clk 0:01:37]}  Be7 {[%clk 0:02:54]} 13. O-O {[%clk 0:01:32]}  O-O {[%clk 0:02:44]} 14. a4 {[%clk 0:01:24]}  Qd7 {[%clk 0:02:37]} 15. a5 {[%clk 0:00:57]}  a6 {[%clk 0:02:28]} 16. Qa4 {[%clk 0:00:52]}  Rfc8 {[%clk 0:02:06]} 17. Rfd1 {[%clk 0:00:37]}  c4 {[%clk 0:01:51]} 18. e4 {[%clk 0:00:32]}  Bd8 {[%clk 0:01:51]} 19. e5 {[%clk 0:00:15]}  Ne8 {[%clk 0:01:41]} 20. b4 {[%clk 0:00:15]}  Nc7 {[%clk 0:01:40]} 21. Qc2 {[%clk 0:00:10]}  Nb5 {[%clk 0:01:39]} 22. Nf3 {[%clk 0:00:09]}  Be7 {[%clk 0:01:36]} 23. Bd2 {[%clk 0:00:04]}  Rf8 {[%clk 0:01:31]} 24. Re1 {[%clk 0:00:04]}  Rac8 {[%clk 0:01:21]} 25. Re2 {[%clk 0:00:04]}  Qd8 {[%clk 0:01:14]} 26. Rae1 {[%clk 0:00:03]}  b6 {[%clk 0:01:10]} 27. axb6 {[%clk 0:00:04]}  Qxb6 {[%clk 0:01:10]} 28. h4 {[%clk 0:00:05]}  a5 {[%clk 0:01:09]} 29. bxa5 {[%clk 0:00:06]}  Nxa5 {[%clk 0:01:10]} 30. h5 {[%clk 0:00:06]}  gxh5 {[%clk 0:01:06]} 31. gxh5 {[%clk 0:00:07]}  Nb3 {[%clk 0:01:06]} 32. Bg5 {[%clk 0:00:07]}  Qa7 {[%clk 0:00:45]} 33. h6 {[%clk 0:00:07]}  g6 {[%clk 0:00:43]} 34. Bh3 {[%clk 0:00:02]}  Kh7 {[%clk 0:00:39]} 35. Kg2 {[%clk 0:00:02]}  Bxg5 {[%clk 0:00:34]} 36. Nxg5+ {[%clk 0:00:03]}  Kxh6 {[%clk 0:00:35]} 37. Nf3 {[%clk 0:00:03]}  Kg7 {[%clk 0:00:32]} 38. Re3 {[%clk 0:00:03]}  Rh8 {[%clk 0:00:31]} 39. Ng5 {[%clk 0:00:04]}  Qe7 {[%clk 0:00:22]} 40. Rg3 {[%clk 0:00:04]}  Rh6 {[%clk 0:00:21]} 41. Rg1 {[%clk 0:00:02]}  Rch8 {[%clk 0:00:21]} 42. f4 {[%clk 0:00:02]}  Ra8 {[%clk 0:00:13]} 43. f5 {[%clk 0:00:01]}  exf5 {[%clk 0:00:11]} 44. Bxf5 {[%clk 0:00:02]}  Qa7 {[%clk 0:00:05]} 45. Bxg6 {[%clk 0:00:02]}  fxg6 {[%clk 0:00:04]} 46. Ne6+ {[%clk 0:00:02]}  Kf7 {[%clk 0:00:04]} 47. Qf2+ {[%clk 0:00:02]}  Ke8 {[%clk 0:00:03]} 48. Qf8+ {[%clk 0:00:02]}  Kd7 {[%clk 0:00:03]} 49. Qf7+ {[%clk 0:00:02]}  Kc6 {[%clk 0:00:03]} 50. Nd8+ {[%clk 0:00:01]}  Kb6 {[%clk 0:00:03]} 51. Qf6+ {[%clk 0:00:01]}  Ka5 {[%clk 0:00:03]} 52. Nc6+ {[%clk 0:00:01]}  Ka4 {[%clk 0:00:03]} 53. Nxa7 {[%clk 0:00:02]}  Rxa7 {[%clk 0:00:04]} 54. e6 {[%clk 0:00:02]}  Rhh7 {[%clk 0:00:02]} 55. Rxg6 {[%clk 0:00:02]}  Rhe7 {[%clk 0:00:03]} 56. Re1 {[%clk 0:00:02]}  Nxc3 {[%clk 0:00:03]} 57. Kh1 {[%clk 0:00:02]}  Kb4 {[%clk 0:00:04]} 58. Rg3 {[%clk 0:00:02]}  Rh7+ {[%clk 0:00:03]} 59. Kg1 {[%clk 0:00:03]}  Rhe7 {[%clk 0:00:04]} 60. Rf3 {[%clk 0:00:02]}  Ne4 {[%clk 0:00:04]} 61. Rxe4 {[%clk 0:00:03]}  dxe4 {[%clk 0:00:05]} 62. Rf5 {[%clk 0:00:03]}  c3 {[%clk 0:00:05]} 63. Qe5 {[%clk 0:00:03]}  c2 {[%clk 0:00:05]} 64. Qb5+ {[%clk 0:00:03]}  Ka3 {[%clk 0:00:05]} 65. Rc5 {[%clk 0:00:02]}  Nxc5 {[%clk 0:00:05]} 66. Qxc5+ {[%clk 0:00:03]}  Kb2 {[%clk 0:00:06]} 67. Qb4+ {[%clk 0:00:04]}  Kc1 {[%clk 0:00:06]} 68. Qe1+ {[%clk 0:00:04]}  Kb2 {[%clk 0:00:07]} 69. Qb4+ {[%clk 0:00:05]}  Kc1 {[%clk 0:00:07]} 70. d5 {[%clk 0:00:06]}  Rab7 {[%clk 0:00:05]} 71. Qe1+ {[%clk 0:00:03]}  Kb2 {[%clk 0:00:06]} 72. Qd2 {[%clk 0:00:03]}  Kb1 {[%clk 0:00:06]} 73. d6 {[%clk 0:00:02]}  c1=Q+ {[%clk 0:00:06]} 74. Qxc1+ {[%clk 0:00:03]}  Kxc1 {[%clk 0:00:06]} 75. Kf2 {[%clk 0:00:03]}  Rxe6 {[%clk 0:00:06]} 0-1


[Site "https://www.chess.com"]

[Event "Titled Tuesday Blitz October 04 Early 2022"]
[White "Kosakowski, Jakub"]
[Black "Matinian, Nikita"]
[WhiteFideId "1185080"]
[BlackFideId "24129100"]
[WhiteElo "2463"]
[BlackElo "2422"]
[Result "0-1"]
[Round "09"]
[TimeControl "180+1"]
[Date "2022.10.04"]
[WhiteClock "0:01:24"]
[BlackClock "0:01:36"]

1. e4 {[%clk 0:02:55]}  c5 {[%clk 0:02:59]} 2. c3 {[%clk 0:02:54]}  Nf6 {[%clk 0:02:58]} 3. e5 {[%clk 0:02:54]}  Nd5 {[%clk 0:02:59]} 4. d4 {[%clk 0:02:50]}  cxd4 {[%clk 0:02:53]} 5. Nf3 {[%clk 0:02:50]}  Nc6 {[%clk 0:02:50]} 6. cxd4 {[%clk 0:02:48]}  d6 {[%clk 0:02:46]} 7. Bc4 {[%clk 0:02:47]}  Nb6 {[%clk 0:02:40]} 8. Bb5 {[%clk 0:02:43]}  dxe5 {[%clk 0:02:39]} 9. Nxe5 {[%clk 0:02:43]}  Bd7 {[%clk 0:02:39]} 10. Nxd7 {[%clk 0:02:43]}  Qxd7 {[%clk 0:02:39]} 11. O-O {[%clk 0:02:43]}  e6 {[%clk 0:02:39]} 12. Nc3 {[%clk 0:02:41]}  a6 {[%clk 0:02:31]} 13. Bxc6 {[%clk 0:02:38]}  bxc6 {[%clk 0:02:31]} 14. Qg4 {[%clk 0:02:36]}  h5 {[%clk 0:02:30]} 15. Qg3 {[%clk 0:02:33]}  h4 {[%clk 0:02:29]} 16. Qg4 {[%clk 0:02:32]}  h3 {[%clk 0:02:29]} 17. g3 {[%clk 0:02:29]}  Nd5 {[%clk 0:02:29]} 18. Re1 {[%clk 0:02:24]}  Rb8 {[%clk 0:02:20]} 19. Ne4 {[%clk 0:02:19]}  Nf6 {[%clk 0:02:02]} 20. Qf4 {[%clk 0:02:15]}  Rb4 {[%clk 0:01:52]} 21. Bd2 {[%clk 0:02:05]}  Rxd4 {[%clk 0:01:47]} 22. Nxf6+ {[%clk 0:01:34]}  gxf6 {[%clk 0:01:45]} 23. Qxf6 {[%clk 0:01:35]}  Qd5 {[%clk 0:01:38]} 24. f3 {[%clk 0:01:24]}  Rxd2 {[%clk 0:01:36]} 0-1


[Site "https://www.chess.com"]